[Event "Commonwealth Open 2019"]
[Site "Delhi"]
[Date "2019.06.30"]
[Round "1.3"]
[White "Arya Bhakta"]
[Black "Aravindh, GM Chithambaram Vr."]
[Result "0-1"]
[ECO "A45"]
[WhiteElo "2050"]
[BlackElo "2598"]
[Annotator "ChessBase"]
[PlyCount "154"]
[EventDate "2019.06.30"]
[EventType "swiss"]
[EventCountry "IND"]
[SourceTitle "playchess.com"]
[Source "ChessBase"]
[SourceQuality "1"]
[TimeControl "5400+30"]

1. d4 {[%emt 0:00:00]} Nf6 {[%emt 0:00:00]} 2. Bf4 {[%emt 0:00:08]} g6 {[%emt 0:00:00]} 3. Nc3 {[%emt 0:00:27]} d5 {[%emt 0:00:02]} 4. e3 {[%emt 0:00:24]} Bg7 {[%emt 0:00:10]} 5. h4 {[%emt 0:01:18]} c6 {[%emt 0:00:10]} 6. Be2 {[%emt 0:00:43]} h5 {[%emt 0:00:10]} 7. Nf3 {[%emt 0:01:00]} Bf5 {[%emt 0:00:12]} 8. O-O {[%emt 0:02:15]} O-O {[%emt 0:04:48]} 9. Ne5 {[%emt 0:04:31]} Nfd7 {[%emt 0:01:04]} 10. Bd3 {[%emt 0:12:31]} e6 {[%emt 0:05:52]} 11. Bxf5 {[%emt 0:04:00]} exf5 {[%emt 0:00:15]} 12. Nf3 {[%emt 0:03:49]} Nf6 {[%emt 0:01:55]} 13. a4 {[%emt 0:06:24]} Nbd7 {[%emt 0:00:24]} 14. Ne2 {[%emt 0:04:36]} Ne4 {[%emt 0:01:09]} 15. Ng5 {[%emt 0:06:20]} Qe7 {[%emt 0:06:09]} 16. Qd3 {[%emt 0:09:34]} Rfe8 {[%emt 0:14:09]} 17. a5 {[%emt 0:09:57]} Nf8 {[%emt 0:08:11]} 18. Qa3 {[%emt 0:04:52]} Qd8 {[%emt 0:02:07]} 19. Qb4 {[%emt 0:08:00]} Re7 {[%emt 0:04:36]} 20. c4 {[%emt 0:03:04]} dxc4 {[%emt 0:02:15]} 21. Nxe4 {[%emt 0:01:01]} fxe4 {[%emt 0:00:06]} 22. Qxc4 {[%emt 0:00:50]} Rd7 {[%emt 0:00:50]} 23. a6 {[%emt 0:08:34]} Rc8 {[%emt 0:00:09]} 24. Bg3 {[%emt 0:01:12]} b6 {[%emt 0:02:15]} 25. Nc3 {[%emt 0:01:20]} Qe8 {[%emt 0:02:32]} 26. Rfd1 {[%emt 0:02:32]} Bf6 {[%emt 0:01:03]} 27. Be5 {[%emt 0:02:34]} Bxe5 {[%emt 0:02:59]} 28. dxe5 {[%emt 0:00:06]} Qxe5 {[%emt 0:00:32]} 29. Qxe4 {[%emt 0:01:20]} Qf6 {[%emt 0:00:06]} 30. Rxd7 {[%emt 0:00:49]} Nxd7 {[%emt 0:00:05]} 31. Rd1 {[%emt 0:00:28]} Nf8 {[%emt 0:03:20]} 32. Qd4 {[%emt 0:00:43]} Qxd4 {[%emt 0:00:38]} 33. exd4 {[%emt 0:00:28]} Ne6 {[%emt 0:09:00]} 34. d5 {[%emt 0:00:37]} cxd5 {[%emt 0:03:10]} 35. Nxd5 {[%emt 0:00:32]} Kf8 {[%emt 0:02:28]} 36. Nc3 {[%emt 0:00:23]} Rc5 {[%emt 0:04:57]} 37. Rd7 {[%emt 0:00:34]} Rc7 {[%emt 0:03:22]} 38. Rd1 {[%emt 0:00:27]} Rc4 {[%emt 0:00:06]} 39. g3 {[%emt 0:00:26]} Nc7 {[%emt 0:04:40]} 40. Rd8+ {[%emt 0:00:30]} Ke7 {[%emt 0:00:05]} 41. Rc8 {[%emt 0:00:07]} Rc5 {[%emt 0:00:14]} 42. Na4 {[%emt 0:00:31]} Kd7 {[%emt 0:00:45]} 43. Rf8 {[%emt 0:00:24]} Rf5 {[%emt 0:00:07]} 44. Rb8 {[%emt 0:01:05]} Kc6 {[%emt 0:01:56]} 45. Nc3 {[%emt 0:00:29]} Nxa6 {[%emt 0:00:07]} 46. Ra8 {[%emt 0:00:25]} Kb7 {[%emt 0:00:15]} 47. Re8 {[%emt 0:00:08]} Nc7 {[%emt 0:00:51]} 48. Re7 {[%emt 0:00:20]} Kc8 {[%emt 0:00:30]} 49. Re1 {[%emt 0:00:42]} Ne6 {[%emt 0:02:21]} 50. Rd1 {[%emt 0:00:44]} Kc7 {[%emt 0:01:35]} 51. Nd5+ {[%emt 0:00:42]} Kb7 {[%emt 0:00:05]} 52. Ne3 {[%emt 0:00:22]} Rc5 {[%emt 0:00:07]} 53. b4 {[%emt 0:00:31]} Rc3 {[%emt 0:00:19]} 54. Rd7+ {[%emt 0:00:27]} Rc7 {[%emt 0:00:13]} 55. Rd2 {[%emt 0:00:21]} a5 {[%emt 0:00:27]} 56. bxa5 {[%emt 0:00:52]} bxa5 {[%emt 0:00:04]} 57. Rb2+ {[%emt 0:00:19]} Ka6 {[%emt 0:00:54]} 58. Nd5 {[%emt 0:00:23]} Rb7 {[%emt 0:00:30]} 59. Rc2 {[%emt 0:00:21]} Rd7 {[%emt 0:00:38]} 60. Ne3 {[%emt 0:00:27]} a4 {[%emt 0:00:15]} 61. Rc8 {[%emt 0:00:54]} Rd8 {[%emt 0:00:23]} 62. Rc1 {[%emt 0:00:22]} Kb5 {[%emt 0:01:03]} 63. Rb1+ {[%emt 0:00:09]} Kc5 {[%emt 0:00:35]} 64. Rb7 {[%emt 0:00:28]} f5 {[%emt 0:00:51]} 65. Ra7 {[%emt 0:00:57]} Kb5 {[%emt 0:00:05]} 66. Rb7+ {[%emt 0:00:07]} Kc6 {[%emt 0:00:15]} 67. Ra7 {[%emt 0:00:15]} Nc5 {[%emt 0:00:05]} 68. Nc4 {[%emt 0:00:29]} Kb5 {[%emt 0:01:11]} 69. Ne5 {[%emt 0:00:27]} Rd6 {[%emt 0:00:05]} 70. Ra8 Ra6 {[%emt 0:00:07]} 71. Rb8+ {[%emt 0:00:55]} Rb6 {[%emt 0:00:04]} 72. Ra8 {[%emt 0:00:46]} Kb4 {[%emt 0:00:21]} 73. f3 {[%emt 0:00:25]} Re6 {[%emt 0:00:46]} 74. Rb8+ {[%emt 0:00:50]} Kc3 {[%emt 0:00:07]} 75. f4 {[%emt 0:00:17]} Na6 {[%emt 0:02:15]} 76. Rc8+ {[%emt 0:00:10]} Kb3 {[%emt 0:00:04]} 77. Nf3 {[%emt 0:00:24]} Rd6 {[%emt 0:00:07]} 0-1

[Event "Commonwealth Open 2019"]
[Site "Delhi"]
[Date "2019.06.30"]
[Round "1.4"]
[White "Lalith, GM Babu M R"]
[Black "Bhatt, Jalpan"]
[Result "1-0"]
[ECO "A22"]
[WhiteElo "2571"]
[BlackElo "2001"]
[Annotator "ChessBase"]
[PlyCount "78"]
[EventDate "2019.06.30"]
[EventType "swiss"]
[EventCountry "IND"]
[SourceTitle "playchess.com"]
[Source "ChessBase"]
[SourceQuality "1"]
[TimeControl "5400+30"]

1. c4 {[%emt 0:00:00]} Nf6 {[%emt 0:01:21]} 2. Nc3 {[%emt 0:00:00]} e5 {[%emt 0:01:11]} 3. g3 {[%emt 0:04:54]} Bb4 {[%emt 0:00:21]} 4. Bg2 {[%emt 0:00:16]} Bxc3 {[%emt 0:00:09]} 5. bxc3 {[%emt 0:00:13]} O-O {[%emt 0:00:47]} 6. d3 {[%emt 0:06:18]} Re8 {[%emt 0:01:18]} 7. e4 {[%emt 0:04:10]} c6 {[%emt 0:02:21]} 8. g4 {[%emt 0:04:16]} d6 {[%emt 0:06:12]} 9. h3 {[%emt 0:05:37]} Na6 {[%emt 0:01:05]} 10. Ne2 {[%emt 0:03:33]} Nc7 {[%emt 0:05:10]} 11. g5 {[%emt 0:23:22]} Nh5 {[%emt 0:06:52]} 12. Bf3 {[%emt 0:00:47]} Nf4 {[%emt 0:00:24]} 13. Nxf4 {[%emt 0:02:10]} exf4 {[%emt 0:00:04]} 14. Bxf4 {[%emt 0:00:12]} Ne6 {[%emt 0:00:33]} 15. Be3 {[%emt 0:07:01]} Nxg5 {[%emt 0:04:45]} 16. Rg1 {[%emt 0:00:18]} Nxf3+ {[%emt 0:00:46]} 17. Qxf3 {[%emt 0:00:04]} Re6 {[%emt 0:00:31]} 18. Bg5 {[%emt 0:05:24]} f6 {[%emt 0:36:40]} 19. Be3 {[%emt 0:01:56]} d5 {[%emt 0:03:37]} 20. exd5 {[%emt 0:04:04]} cxd5 {[%emt 0:00:05]} 21. cxd5 {[%emt 0:00:04]} Re5 {[%emt 0:00:30]} 22. Qg3 {[%emt 0:00:20]} g6 {[%emt 0:01:53]} 23. c4 {[%emt 0:01:00]} Bf5 {[%emt 0:00:46]} 24. Rd1 {[%emt 0:00:44]} Qa5+ {[%emt 0:00:48]} 25. Kf1 {[%emt 0:00:19]} Qxa2 {[%emt 0:03:40]} 26. Kg2 {[%emt 0:06:48]} Rae8 {[%emt 0:01:38]} 27. Rd2 {[%emt 0:00:20]} Qa5 {[%emt 0:00:52]} 28. Bf4 {[%emt 0:02:16]} Re1 {[%emt 0:02:00]} 29. Rxe1 {[%emt 0:00:31]} Rxe1 {[%emt 0:00:03]} 30. Be3 {[%emt 0:00:10]} Qd8 {[%emt 0:02:03]} 31. Bxa7 {[%emt 0:00:50]} Qd7 {[%emt 0:02:33]} 32. f3 {[%emt 0:00:10]} Qe8 {[%emt 0:01:31]} 33. Bf2 {[%emt 0:00:16]} Re2 {[%emt 0:04:37]} 34. Rxe2 {[%emt 0:04:07]} Qxe2 {[%emt 0:00:03]} 35. Qb8+ {[%emt 0:00:06]} Kg7 {[%emt 0:00:04]} 36. Qxb7+ {[%emt 0:00:05]} Kh6 {[%emt 0:00:16]} 37. Qb6 {[%emt 0:00:16]} Bxd3 {[%emt 0:00:30]} 38. Qxf6 {[%emt 0:00:30]} Bxc4 {[%emt 0:00:30]} 39. d6 {[%emt 0:00:30]} Bd3 {[%emt 0:02:28]} 1-0

[Event "Commonwealth Open 2019"]
[Site "Delhi"]
[Date "2019.06.30"]
[Round "1.5"]
[White "Anilkumar, O.T."]
[Black "Deepan Chakkravarthy J."]
[Result "0-1"]
[ECO "C50"]
[WhiteElo "1989"]
[BlackElo "2557"]
[Annotator "ChessBase"]
[PlyCount "72"]
[EventDate "2019.06.30"]
[EventType "swiss"]
[EventCountry "IND"]
[SourceTitle "playchess.com"]
[Source "ChessBase"]
[SourceQuality "1"]
[TimeControl "5400+30"]

1. e4 {[%emt 0:04:39]} e5 {[%emt 0:00:00]} 2. Nf3 {[%emt 0:00:20]} Nc6 {[%emt 0:00:00]} 3. Bc4 {[%emt 0:00:05]} Nf6 {[%emt 0:00:00]} 4. d3 {[%emt 0:00:05]} Bc5 {[%emt 0:00:26]} 5. Be3 {[%emt 0:00:03]} Bb6 {[%emt 0:02:00]} 6. Nc3 {[%emt 0:00:47]} O-O {[%emt 0:00:12]} 7. O-O {[%emt 0:00:14]} d6 {[%emt 0:04:50]} 8. h3 {[%emt 0:00:54]} Kh8 {[%emt 0:03:33]} 9. Bb3 {[%emt 0:12:37]} h6 {[%emt 0:01:51]} 10. Nh2 {[%emt 0:02:47]} Nd4 {[%emt 0:03:30]} 11. Ne2 {[%emt 0:01:35]} Nxb3 {[%emt 0:15:23]} 12. axb3 {[%emt 0:00:02]} d5 {[%emt 0:00:13]} 13. Bxb6 {[%emt 0:00:27]} cxb6 {[%emt 0:00:02]} 14. Ng3 {[%emt 0:00:58]} a5 {[%emt 0:01:06]} 15. c4 {[%emt 0:00:22]} dxe4 {[%emt 0:01:32]} 16. dxe4 {[%emt 0:00:29]} Be6 {[%emt 0:00:32]} 17. Qe2 {[%emt 0:00:10]} Nd7 {[%emt 0:00:25]} 18. Rfd1 {[%emt 0:00:11]} Qe7 {[%emt 0:03:14]} 19. Ng4 {[%emt 0:01:03]} Nc5 {[%emt 0:01:47]} 20. Qe3 {[%emt 0:16:17]} Qg5 {[%emt 0:01:13]} 21. Rd6 {[%emt 0:09:39]} Qxe3 {[%emt 0:05:07]} 22. Nxe3 {[%emt 0:00:04]} b5 {[%emt 0:00:52]} 23. cxb5 {[%emt 0:02:06]} Nxb3 {[%emt 0:00:15]} 24. Rad1 {[%emt 0:00:44]} Rfc8 {[%emt 0:03:02]} 25. Ne2 {[%emt 0:00:20]} a4 {[%emt 0:00:39]} 26. f4 {[%emt 0:00:25]} Bc4 {[%emt 0:03:20]} 27. Nxc4 {[%emt 0:00:09]} Rxc4 {[%emt 0:00:03]} 28. fxe5 {[%emt 0:00:02]} Rc2 {[%emt 0:01:48]} 29. e6 {[%emt 0:13:52]} fxe6 {[%emt 0:00:11]} 30. Nf4 {[%emt 0:00:01]} Rxb2 {[%emt 0:00:32]} 31. Nd3 {[%emt 0:10:42]} Re2 {[%emt 0:01:40]} 32. Rxe6 {[%emt 0:01:06]} a3 {[%emt 0:00:26]} 33. Nb4 {[%emt 0:04:27]} a2 {[%emt 0:01:42]} 34. Nxa2 {[%emt 0:00:03]} Raxa2 {[%emt 0:00:06]} 35. Rg6 {[%emt 0:00:01]} Kh7 {[%emt 0:00:46]} 36. Rg4 {[%emt 0:00:08]} Nd2 {[%emt 0:01:31]} 0-1

[Event "Commonwealth Open 2019"]
[Site "Delhi"]
[Date "2019.06.30"]
[Round "1.6"]
[White "Debashis, Das"]
[Black "Parthasarathy R"]
[Result "1-0"]
[ECO "E61"]
[WhiteElo "2544"]
[BlackElo "1345"]
[Annotator "ChessBase"]
[PlyCount "55"]
[EventDate "2019.06.30"]
[EventType "swiss"]
[EventCountry "IND"]
[SourceTitle "playchess.com"]
[Source "ChessBase"]
[SourceQuality "1"]
[TimeControl "5400+30"]

1. d4 {[%emt 0:00:00]} Nf6 {[%emt 0:04:36]} 2. c4 {[%emt 0:00:00]} g6 {[%emt 0:00:05]} 3. Nc3 {[%emt 0:00:00]} Bg7 {[%emt 0:00:05]} 4. Nf3 {[%emt 0:00:21]} O-O {[%emt 0:00:09]} 5. e4 {[%emt 0:00:15]} c6 {[%emt 0:00:28]} 6. Qb3 {[%emt 0:07:11]} d6 {[%emt 0:02:02]} 7. Be2 {[%emt 0:00:21]} e5 {[%emt 0:00:23]} 8. d5 {[%emt 0:00:08]} Na6 {[%emt 0:01:41]} 9. O-O {[%emt 0:00:25]} Bd7 {[%emt 0:08:41]} 10. Be3 {[%emt 0:03:29]} Ng4 {[%emt 0:10:05]} 11. Bg5 {[%emt 0:00:32]} f6 {[%emt 0:04:36]} 12. Bh4 {[%emt 0:03:50]} g5 {[%emt 0:14:14]} 13. Bg3 {[%emt 0:00:08]} Nc5 {[%emt 0:02:02]} 14. Qd1 {[%emt 0:00:34]} h5 {[%emt 0:20:32]} 15. Nd2 {[%emt 0:03:26]} f5 {[%emt 0:00:36]} 16. exf5 {[%emt 0:01:42]} Bxf5 {[%emt 0:00:21]} 17. h3 {[%emt 0:00:21]} Nf6 {[%emt 0:01:23]} 18. Bxh5 {[%emt 0:02:15]} Nxh5 {[%emt 0:12:04]} 19. Qxh5 {[%emt 0:00:07]} Rf6 {[%emt 0:07:46]} 20. Qxg5 {[%emt 0:04:07]} Qd7 {[%emt 0:01:58]} 21. Qe3 {[%emt 0:06:47]} Bh6 {[%emt 0:03:16]} 22. Nde4 {[%emt 0:00:23]} Nxe4 {[%emt 0:01:04]} 23. Nxe4 {[%emt 0:00:06]} Rg6 {[%emt 0:00:41]} 24. Qe2 {[%emt 0:00:26]} cxd5 {[%emt 0:01:41]} 25. cxd5 {[%emt 0:00:12]} Rc8 {[%emt 0:01:14]} 26. Rae1 {[%emt 0:01:35]} Qa4 {[%emt 0:00:46]} 27. Nxd6 {[%emt 0:00:35]} Rxd6 {[%emt 0:00:27]} 28. Qxe5 {[%emt 0:00:04]} 1-0

[Event "Commonwealth Open 2019"]
[Site "Delhi"]
[Date "2019.06.30"]
[Round "1.7"]
[White "Karthik Sai Ch"]
[Black "Erigaisi Arjun"]
[Result "0-1"]
[ECO "D02"]
[WhiteElo "1963"]
[BlackElo "2526"]
[Annotator "ChessBase"]
[PlyCount "74"]
[EventDate "2019.06.30"]
[EventType "swiss"]
[EventCountry "IND"]
[SourceTitle "playchess.com"]
[Source "ChessBase"]
[SourceQuality "1"]
[TimeControl "5400+30"]

1. d4 {[%emt 0:00:00]} Nf6 {[%emt 0:00:04]} 2. Nf3 {[%emt 0:00:00]} d5 {[%emt 0:01:33]} 3. Bf4 {[%emt 0:00:15]} c5 {[%emt 0:00:17]} 4. e3 {[%emt 0:00:16]} Nc6 {[%emt 0:00:08]} 5. Nbd2 {[%emt 0:00:42]} cxd4 {[%emt 0:00:30]} 6. exd4 {[%emt 0:00:23]} Bg4 {[%emt 0:00:09]} 7. c3 {[%emt 0:05:05]} e6 {[%emt 0:00:09]} 8. Bd3 {[%emt 0:02:40]} Bd6 {[%emt 0:02:45]} 9. Bxd6 {[%emt 0:05:59]} Qxd6 {[%emt 0:00:12]} 10. O-O {[%emt 0:00:24]} O-O-O {[%emt 0:01:13]} 11. Qa4 {[%emt 0:09:32]} Nd7 {[%emt 0:02:49]} 12. Rfe1 {[%emt 0:08:12]} f6 {[%emt 0:02:50]} 13. b4 {[%emt 0:01:48]} Kb8 {[%emt 0:01:35]} 14. b5 {[%emt 0:07:31]} Nb6 {[%emt 0:02:50]} 15. Qb3 {[%emt 0:07:08]} Na5 {[%emt 0:07:42]} 16. Qb4 {[%emt 0:03:47]} Qxb4 {[%emt 0:01:36]} 17. cxb4 {[%emt 0:00:10]} Nac4 {[%emt 0:00:07]} 18. h3 {[%emt 0:13:25]} Bxf3 {[%emt 0:05:47]} 19. Nxf3 {[%emt 0:00:15]} Rde8 {[%emt 0:03:08]} 20. a4 {[%emt 0:03:20]} Nd6 {[%emt 0:00:34]} 21. Re2 {[%emt 0:03:04]} Kc7 {[%emt 0:00:38]} 22. Bc2 {[%emt 0:08:21]} Nbc4 {[%emt 0:01:52]} 23. Rae1 {[%emt 0:01:36]} Kd7 {[%emt 0:00:10]} 24. Bb3 {[%emt 0:01:41]} Re7 {[%emt 0:00:39]} 25. Bxc4 {[%emt 0:05:01]} Nxc4 {[%emt 0:00:09]} 26. Rc1 {[%emt 0:00:13]} Rc8 {[%emt 0:00:18]} 27. Rec2 {[%emt 0:01:20]} Kd6 {[%emt 0:01:54]} 28. Nd2 {[%emt 0:01:47]} Rec7 {[%emt 0:00:30]} 29. Nb3 {[%emt 0:00:12]} b6 {[%emt 0:00:14]} 30. f4 {[%emt 0:00:14]} Nb2 {[%emt 0:02:25]} 31. Nc5 {[%emt 0:04:14]} Nd3 {[%emt 0:01:05]} 32. Rb1 {[%emt 0:03:12]} Nxf4 {[%emt 0:01:37]} 33. a5 {[%emt 0:00:38]} e5 {[%emt 0:01:15]} 34. dxe5+ {[%emt 0:00:21]} fxe5 {[%emt 0:00:07]} 35. Nb7+ {[%emt 0:00:28]} Kd7 {[%emt 0:00:17]} 36. Rc4 Rc6 37. Rxc6 {[%emt 0:00:40]} Rc7 {[%emt 0:00:37]} 0-1

[Event "Commonwealth Open 2019"]
[Site "Delhi"]
[Date "2019.06.30"]
[Round "1.8"]
[White "Iniyan, P."]
[Black "Toshali, V."]
[Result "1-0"]
[ECO "D16"]
[WhiteElo "2525"]
[BlackElo "1963"]
[Annotator "ChessBase"]
[PlyCount "41"]
[EventDate "2019.06.30"]
[EventType "swiss"]
[EventCountry "IND"]
[SourceTitle "playchess.com"]
[Source "ChessBase"]
[SourceQuality "1"]
[TimeControl "5400+30"]

1. d4 {[%emt 0:00:00]} d5 {[%emt 0:02:11]} 2. c4 {[%emt 0:03:42]} c6 {[%emt 0:00:17]} 3. Nf3 {[%emt 0:00:08]} Nf6 {[%emt 0:00:10]} 4. Nc3 {[%emt 0:00:05]} dxc4 {[%emt 0:00:08]} 5. a4 {[%emt 0:00:08]} e6 {[%emt 0:00:06]} 6. e3 {[%emt 0:00:08]} c5 {[%emt 0:00:06]} 7. Bxc4 {[%emt 0:00:07]} cxd4 {[%emt 0:00:11]} 8. exd4 {[%emt 0:02:16]} Nc6 {[%emt 0:00:08]} 9. O-O {[%emt 0:00:04]} Be7 {[%emt 0:00:06]} 10. Qe2 {[%emt 0:00:40]} O-O {[%emt 0:00:28]} 11. Rd1 {[%emt 0:00:19]} Nb4 {[%emt 0:02:47]} 12. Ne5 {[%emt 0:03:22]} Nfd5 {[%emt 0:24:17]} 13. Ne4 {[%emt 0:00:50]} b6 {[%emt 0:06:14]} 14. Ra3 {[%emt 0:00:26]} f5 {[%emt 0:20:47]} 15. Rh3 {[%emt 0:01:58]} fxe4 {[%emt 0:10:11]} 16. Qxe4 {[%emt 0:00:07]} Rf5 {[%emt 0:03:14]} 17. g4 {[%emt 0:00:12]} Nf6 {[%emt 0:14:50]} 18. Qxf5 {[%emt 0:00:51]} Nbd5 {[%emt 0:01:03]} 19. Qd3 {[%emt 0:01:34]} Nb4 {[%emt 0:10:54]} 20. Qf3 {[%emt 0:00:09]} Rb8 {[%emt 0:00:57]} 21. g5 {[%emt 0:00:06]} 1-0

[Event "Commonwealth Open 2019"]
[Site "Delhi"]
[Date "2019.06.30"]
[Round "1.9"]
[White "Bidhar, Rutumbara"]
[Black "Swayams, Mishra"]
[Result "0-1"]
[ECO "E20"]
[WhiteElo "1961"]
[BlackElo "2493"]
[Annotator "ChessBase"]
[PlyCount "40"]
[EventDate "2019.06.30"]
[EventType "swiss"]
[EventCountry "IND"]
[SourceTitle "playchess.com"]
[Source "ChessBase"]
[SourceQuality "1"]
[TimeControl "5400+30"]

1. d4 {[%emt 0:03:35]} Nf6 {[%emt 0:00:00]} 2. c4 {[%emt 0:00:12]} e6 {[%emt 0:00:00]} 3. Nc3 {[%emt 0:00:09]} Bb4 {[%emt 0:00:00]} 4. Bd2 {[%emt 0:00:08]} O-O {[%emt 0:01:30]} 5. Qc2 {[%emt 0:02:26]} d5 {[%emt 0:04:24]} 6. e3 {[%emt 0:00:48]} b6 {[%emt 0:03:46]} 7. cxd5 {[%emt 0:02:22]} exd5 {[%emt 0:00:20]} 8. a3 {[%emt 0:02:30]} Be7 {[%emt 0:00:30]} 9. Bd3 {[%emt 0:00:43]} c5 {[%emt 0:00:43]} 10. Nge2 {[%emt 0:04:15]} Nc6 {[%emt 0:04:05]} 11. O-O {[%emt 0:00:56]} Bb7 {[%emt 0:01:31]} 12. b3 {[%emt 0:06:40]} Re8 {[%emt 0:01:29]} 13. dxc5 {[%emt 0:07:19]} Bxc5 {[%emt 0:04:46]} 14. Bb5 {[%emt 0:05:49]} Rc8 {[%emt 0:00:54]} 15. Rfd1 {[%emt 0:06:50]} Bd6 {[%emt 0:04:11]} 16. Bxc6 {[%emt 0:06:41]} Bxc6 {[%emt 0:01:09]} 17. Nd4 {[%emt 0:03:39]} Bd7 {[%emt 0:05:02]} 18. h3 {[%emt 0:05:03]} Ne4 {[%emt 0:02:25]} 19. Be1 {[%emt 0:05:15]} Qf6 {[%emt 0:13:45]} 20. Qd3 {[%emt 0:15:05]} Rxc3 {[%emt 0:01:11]} 0-1

[Event "Commonwealth Open 2019"]
[Site "Delhi"]
[Date "2019.06.30"]
[Round "1.10"]
[White "Swapnil, S. Dhopade"]
[Black "Meenal Gupta"]
[Result "1-0"]
[ECO "E11"]
[WhiteElo "2488"]
[BlackElo "1958"]
[Annotator "ChessBase"]
[PlyCount "48"]
[EventDate "2019.06.30"]
[EventType "swiss"]
[EventCountry "IND"]
[SourceTitle "playchess.com"]
[Source "ChessBase"]
[SourceQuality "1"]
[TimeControl "5400+30"]

1. d4 {[%emt 0:00:51]} Nf6 {[%emt 0:00:00]} 2. c4 {[%emt 0:01:44]} e6 {[%emt 0:00:00]} 3. Nf3 {[%emt 0:00:18]} Bb4+ {[%emt 0:00:05]} 4. Bd2 {[%emt 0:00:40]} Bxd2+ {[%emt 0:00:09]} 5. Qxd2 {[%emt 0:00:16]} b6 {[%emt 0:00:12]} 6. g3 {[%emt 0:06:43]} Bb7 {[%emt 0:00:48]} 7. Bg2 {[%emt 0:00:05]} O-O {[%emt 0:01:22]} 8. Nc3 {[%emt 0:00:29]} Ne4 {[%emt 0:01:54]} 9. Qc2 {[%emt 0:08:37]} f5 {[%emt 0:15:45]} 10. Ne5 {[%emt 0:11:03]} d5 {[%emt 0:09:55]} 11. cxd5 {[%emt 0:02:24]} exd5 {[%emt 0:00:30]} 12. O-O {[%emt 0:00:23]} Rf6 {[%emt 0:11:25]} 13. Rac1 {[%emt 0:03:28]} c6 {[%emt 0:03:26]} 14. e3 {[%emt 0:03:56]} Na6 {[%emt 0:10:31]} 15. f3 {[%emt 0:14:33]} Nxc3 {[%emt 0:03:41]} 16. Qxc3 {[%emt 0:02:39]} c5 {[%emt 0:06:38]} 17. dxc5 {[%emt 0:03:18]} bxc5 {[%emt 0:01:05]} 18. Rfd1 {[%emt 0:00:30]} Qe7 {[%emt 0:02:24]} 19. Rd2 {[%emt 0:03:35]} Rd8 {[%emt 0:13:56]} 20. f4 {[%emt 0:00:19]} Kh8 {[%emt 0:02:08]} 21. b3 {[%emt 0:02:10]} Rfd6 {[%emt 0:01:16]} 22. Rcd1 {[%emt 0:00:09]} Qe6 {[%emt 0:05:23]} 23. Qa5 {[%emt 0:05:16]} Kg8 {[%emt 0:01:07]} 24. Bxd5 {[%emt 0:05:00]} Bc8 1-0

[Event "Commonwealth Open 2019"]
[Site "Delhi"]
[Date "2019.06.30"]
[Round "1.11"]
[White "Sanskriti Goyal"]
[Black "Krishna C R G"]
[Result "0-1"]
[ECO "A53"]
[WhiteElo "1951"]
[BlackElo "2481"]
[Annotator "ChessBase"]
[PlyCount "72"]
[EventDate "2019.06.30"]
[EventType "swiss"]
[EventCountry "IND"]
[SourceTitle "playchess.com"]
[Source "ChessBase"]
[SourceQuality "1"]
[TimeControl "5400+30"]

1. d4 {[%emt 0:00:00]} d6 {[%emt 0:02:33]} 2. c4 {[%emt 0:01:29]} Nf6 {[%emt 0:00:34]} 3. Nc3 {[%emt 0:01:09]} Nbd7 {[%emt 0:00:07]} 4. e4 {[%emt 0:02:04]} e5 {[%emt 0:00:03]} 5. d5 {[%emt 0:09:06]} Nc5 {[%emt 0:00:18]} 6. f3 {[%emt 0:00:44]} a5 {[%emt 0:01:36]} 7. Be3 {[%emt 0:00:52]} g6 {[%emt 0:02:34]} 8. Nge2 {[%emt 0:04:37]} Bg7 {[%emt 0:00:24]} 9. Qd2 {[%emt 0:07:29]} O-O {[%emt 0:00:28]} 10. g4 {[%emt 0:06:21]} Bxg4 {[%emt 0:08:29]} 11. fxg4 {[%emt 0:00:56]} Nfxe4 {[%emt 0:00:51]} 12. Nxe4 {[%emt 0:00:36]} Nxe4 {[%emt 0:00:03]} 13. Qc2 {[%emt 0:03:01]} Qh4+ {[%emt 0:00:19]} 14. Ng3 {[%emt 0:10:54]} f5 {[%emt 0:06:10]} 15. O-O-O {[%emt 0:16:58]} Nxg3 {[%emt 0:03:47]} 16. Qf2 {[%emt 0:05:06]} f4 {[%emt 0:03:05]} 17. Bd2 {[%emt 0:01:42]} Nf5 {[%emt 0:02:44]} 18. Qxh4 {[%emt 0:02:23]} Nxh4 {[%emt 0:00:03]} 19. Be1 {[%emt 0:00:44]} Bf6 {[%emt 0:03:23]} 20. Bd3 {[%emt 0:01:13]} Bg5 {[%emt 0:01:30]} 21. Bxh4 {[%emt 0:02:45]} Bxh4 {[%emt 0:00:26]} 22. Be4 {[%emt 0:00:10]} f3 {[%emt 0:00:20]} 23. Kc2 {[%emt 0:01:55]} Rf4 {[%emt 0:06:29]} 24. Kd3 {[%emt 0:00:04]} Rxg4 {[%emt 0:00:20]} 25. Bxf3 {[%emt 0:00:06]} Rd4+ {[%emt 0:00:13]} 26. Ke2 {[%emt 0:06:53]} Rxc4 {[%emt 0:02:26]} 27. Rc1 {[%emt 0:00:01]} Rf4 {[%emt 0:00:56]} 28. h3 Raf8 {[%emt 0:02:07]} 29. Bg4 {[%emt 0:02:57]} Re4+ {[%emt 0:00:36]} 30. Kd3 {[%emt 0:00:34]} Rd4+ {[%emt 0:00:06]} 31. Ke2 {[%emt 0:00:13]} Rf2+ {[%emt 0:01:48]} 32. Ke3 {[%emt 0:00:11]} Rdd2 {[%emt 0:01:15]} 33. Be6+ {[%emt 0:01:32]} Kg7 {[%emt 0:02:14]} 34. Rxc7+ {[%emt 0:00:58]} Kh6 {[%emt 0:00:02]} 35. Rxb7 {[%emt 0:00:08]} Bg5+ {[%emt 0:00:07]} 36. Ke4 {[%emt 0:00:03]} Rd4# {[%emt 0:00:06]} 0-1